Cogmind - Beta 14 @@@ ROGUE MODE // 2024.12.09 @ 19:33:57 Player: porter Result: Destroyed by 8R-AWN with 8R-AWN's Boregun Performance ------------- Evolutions (0) 0 Regions Visited (3) 600 Robots Destroyed (2) 10 Value Destroyed (17) 17 Prototype IDs (0) 0 Alien Tech Used (0) 0 Bonus (297) 297 TOTAL SCORE: 924 Bonus ------- Aligned with FarCom 300 Friendly Fire -3 Cogmind --------- Core Integrity 0/250 Matter 255/300 Energy 100/100 System Corruption 7% Temperature Cool (0) Movement Walking (1450) Ox19 Location -10/Exiles Parts ------- > --- POWER (1) -------- (None) > --- PROPULSION (2) --- Aluminum Leg > --- UTILITY (2) ------ Humpback > --- WEAPON (2) ------- (None) > --- INVENTORY (35) --- Light Treads Light Treads Signal Interpreter Peak State ------------ > --- POWER ------------ Light Nuclear Core > --- PROPULSION ------- Aluminum Leg Aluminum Leg > --- UTILITY ---------- Small Storage Unit Sensor Array > --- WEAPON ----------- Light Assault Rifle Light Assault Rifle > --- INVENTORY -------- Ion Engine Light Ion Engine Light Treads Light Treads Wheel Signal Interpreter EM Pulse Gun Grenade Launcher [Rating: 9] Favorites ----------- Power Light Nuclear Core Engine Ion Engine Power Core Light Nuclear Core Propulsion Aluminum Leg Leg Aluminum Leg Utility Small Storage Unit Device Sensor Array Storage Small Storage Unit Weapon Light Assault Rifle Energy Gun Small Laser Ballistic Gun Light Assault Rifle Launcher Grenade Launcher Build | -11 -10 -10 -10 ------- Run | Yrd Mat Min Exi Slots Evolved . | . . . . Power . | . . . . Propulsion . | . . . . Utility . | . . . . Weapon . | . . . . Parts Attached 16 | 7 1 6 2 Power 3 | 1 . 2 . Engine 2 | 1 . 1 . Core 1 | . . 1 . Reactor . | . . . . Propulsion 3 | 2 . 1 . Treads . | . . . . Leg 3 | 2 . 1 . Wheel . | . . . . Hover . | . . . . Flight . | . . . . Utility 4 | 1 1 . 2 Device 2 | . 1 . 1 Storage 2 | 1 . . 1 Processor . | . . . . Hackware . | . . . . Protection . | . . . . Artifact . | . . . . Weapon 6 | 3 . 3 . Energy Gun 3 | 3 . . . Energy Cannon . | . . . . Ballistic Gun 2 | . . 2 . Ballistic Cannon . | . . . . Launcher 1 | . . 1 . Special Weapon . | . . . . Impact Weapon . | . . . . Slashing Weapon . | . . . . Piercing Weapon . | . . . . Special Melee Weapon . | . . . . Unidentified Prototypes . | . . . . Parts Lost 7 | . . 3 4 Power 1 | . . . 1 Propulsion 2 | . . 1 1 Utility . | . . . . Weapon 4 | . . 2 2 Highest Loss Streak 4 | . . 3 4 To Critical Strikes 1 | . . . 1 Average Slot Usage (%) 95 | . 87 95 97 Engine 4 | . 14 7 . Core 9 | . . 6 13 Leg 27 | . 28 28 27 Device 11 | . 2 14 13 Storage 14 | . 14 14 14 Energy Gun 5 | . 28 6 . Ballistic Gun 19 | . . 13 27 Launcher 1 | . . 3 . Peak Build Rating 9 | 6 7 9 9 Average Rating 7 | 4 6 7 8 On Entrance 5 | . 6 7 9 Naked Turns . | . . . . Heaviest Build 207 | 12 13 13 207 Greatest Support 20 | 20 20 20 20 Greatest Overweight (x) 10 | . . . 10 Average Overweight (x) . | . . . . Largest Inventory Capacity 35 | 8 8 8 35 Average Capacity 8 | 6 8 8 9 Most Carried 8 | 6 8 8 8 Average Carried 7 | 4 6 7 7 Final Capacity 35 | 8 8 8 35 Final Carried 8 | 6 8 8 3 Class Distribution -------------------- 62% | Scavenger-Mutant 33% | Mutant 3% | Hauler-Mutant Dominant Class ---------------- Mutant | -10/Materials Mutant | -10/Mines Scavenger-Mutant | -10/Exiles Resources | -11 -10 -10 -10 ----------- Run | Yrd Mat Min Exi Matter Collected 404 | 230 21 153 . Remotely . | . . . . Salvage Created 50 | . . 50 . Parts 6 | . . 6 . Haulers Intercepted . | . . . . Recyclers Shooed . | . . . . Parts Field Recycled . | . . . . Retrieved Matter . | . . . . Parts Self-Destructed . | . . . . Prevented . | . . . . Kills | -11 -10 -10 -10 ------- Run | Yrd Mat Min Exi Combat Hostiles Destroyed 1 | . . 1 . Guns 1 | . . 1 . Classes Destroyed 2 | . . 2 . Tunneler 1 | . . 1 . Swarmer 1 | . . 1 . Best Kill Streak 1 | . . 1 . Combat Bots Only 1 | . . 1 . Max Kills in Single Turn 1 | . . 1 . Gunslinging . | . . . . Exploded . | . . . . Melee . | . . . . Uniques/NPCs Destroyed . | . . . . Combat | -11 -10 -10 -10 -------- Run | Yrd Mat Min Exi Hostile Shots Fired 90 | . . 9 81 Missed 32 | . . 1 31 Damage Taken 1239 | . . 442 797 Core 252 | . . 83 169 Absorbed by Shields . | . . . . Core Remaining (%) 100 | 100 . . . Volleys Fired 15 | . 1 14 . Largest 2 | . 2 2 . Hottest 80 | . 80 80 . Shots Fired 26 | . 2 23 1 Gun 19 | . 2 16 1 Cannon . | . . . . Launcher 7 | . . 7 . Special . | . . . . Kinetic 1 | . . . 1 Thermal 18 | . 2 16 . Explosive 7 | . . 7 . Electromagnetic . | . . . . Robot Hit Streak 7 | . . 7 . Robot Miss Streak 5 | . 2 5 1 Penetration Max . | . . . . Secondary Targets . | . . . . Shots Hit Robots 13 | . . 13 . Core Hits 24 | . . 24 . Critical Kills . | . . . . Critical Parts Destroyed . | . . . . Critical Strikes . | . . . . Melee Attacks . | . . . . Impact . | . . . . Slashing . | . . . . Piercing . | . . . . Sneak Attacks . | . . . . Combat Hostiles . | . . . . Follow-up Attacks . | . . . . Damage Inflicted 626 | . 11 615 . Guns 97 | . 11 86 . Cannons . | . . . . Explosions 529 | . . 529 . Melee . | . . . . Ramming . | . . . . Kinetic . | . . . . Thermal 97 | . 11 86 . Explosive 529 | . . 529 . Electromagnetic . | . . . . Impact . | . . . . Slashing . | . . . . Piercing . | . . . . Highest Corruption 7 | . . 7 7 Average Corruption 7 | . . 7 7 Corruption Purged . | . . . . Corruption Blocked . | . . . . Effects 27 | . . 10 17 Message Errors 6 | . . 2 4 Matter Fused 7 | . . 3 4 Heat Flow Errors 3 | . . . 3 Energy Discharges 1 | . . . 1 Data Loss (minor) 4 | . . 1 3 Data Loss (major) 2 | . . 2 . Misfires 2 | . . 1 1 Alerts 2 | . . 1 1 Overload Shots . | . . . . Overflow Damage 6 | . . 6 . Projectiles . | . . . . Explosions 6 | . . 6 . Melee . | . . . . Knockbacks . | . . . . Impact . | . . . . Kinetic . | . . . . Secondary . | . . . . Self-Inflicted Damage 19 | . . 19 . Shots 1 | . . 1 . Rammed . | . . . . Targets Rammed . | . . . . Kicked . | . . . . Crushed . | . . . . Highest Temperature 172 | . 18 54 172 Average Temperature 43 | . 12 23 68 Received Heat Transfer . | . . . . Siege Activations . | . . . . Robots Corrupted . | . . . . Combat Hostiles . | . . . . Parts Fried . | . . . . Impact Corruptions . | . . . . Robots Melted . | . . . . Combat Hostiles . | . . . . Parts Melted . | . . . . Heat Transferred 231 | . 25 206 . Parts Sabotaged . | . . . . Parts Stolen . | . . . . Parts Stripped . | . . . . Power Chain Reactions . | . . . . Alert | -11 -10 -10 -10 ------- Run | Yrd Mat Min Exi Peak Influence 56 | . 30 56 . Initial 11 | . . 11 . Average 33 | . 20 46 . Maximum Alert Level . | . . . . Low Security (%) 100 | 100 100 100 . Level 1 . | . . . . Level 2 . | . . . . Level 3 . | . . . . Level 4 . | . . . . Level 5 . | . . . . High Security . | . . . . Max Security . | . . . . Squads Dispatched 2 | . 2 . . Investigation . | . . . . Extermination . | . . . . Reinforcement 2 | . 2 . . Assault . | . . . . Garrison . | . . . . Intercept . | . . . . Searches Triggered . | . . . . Construction Impeded . | . . . . Haulers Reinforced . | . . . . Active Scanning Responses . | . . . . Cargo Convoy Interrupts . | . . . . Stealth | -11 -10 -10 -10 --------- Run | Yrd Mat Min Exi Distress Signals 1 | . 1 . . Communications Jammed . | . . . . Distress Signals . | . . . . Times Spotted 24 | . 4 14 6 Peak Tracking Total 14 | . 3 14 8 Tactical Retreats 1 | . . 1 . Traps | -11 -10 -10 -10 ------- Run | Yrd Mat Min Exi Traps Triggered . | . . . . Indirectly . | . . . . Trap Hack Attempts . | . . . . Triggered . | . . . . Disarmed . | . . . . Reprogrammed . | . . . . Reused . | . . . . Traps Extracted . | . . . . Installed . | . . . . Triggered . | . . . . Machines | -11 -10 -10 -10 ---------- Run | Yrd Mat Min Exi Machines Disabled . | . . . . Max in Single Turn . | . . . . Machines Repaired . | . . . . Machines Dismantled . | . . . . Machines Sabotaged . | . . . . Overloaded Fab Kills . | . . . . Hacking | -11 -10 -10 -10 --------- Run | Yrd Mat Min Exi Machines Accessed 8 | . 4 . 4 Terminals 3 | . 3 . . Fabricators . | . . . . Repair Stations . | . . . . Recycling Units 1 | . 1 . . Scanalyzers . | . . . . Garrison Access . | . . . . Total Hacks 58 | . 9 . 49 Successful 54 | . 5 . 49 Failed 4 | . 4 . . Catastrophic . | . . . . Database Lockouts . | . . . . Manual 1 | . . . 1 Terminals 7 | . 7 . . Fabricators . | . . . . Repair Stations . | . . . . Recycling Units 2 | . 2 . . Scanalyzers . | . . . . Garrison Access . | . . . . Terminal Hacks 52 | . 3 . 49 Record 49 | . . . 49 Alert Level 1 | . 1 . . Recall Reinforcements 1 | . 1 . . Zone Layout 1 | . 1 . . Fabricator Hacks . | . . . . Repair Station Hacks . | . . . . Recycling Unit Hacks 2 | . 2 . . Recycle Component 1 | . 1 . . Report Inventory 1 | . 1 . . Scanalyzer . | . . . . Garrison Access Hacks . | . . . . Unauthorized Hacks . | . . . . Terminals . | . . . . Fabricators . | . . . . Repair Stations . | . . . . Recycling Units . | . . . . Scanalyzers . | . . . . Garrison Access . | . . . . Data Cores Recovered . | . . . . Used . | . . . . Hacking Detections 3 | . 3 . . Full Trace Events . | . . . . Feedback Events . | . . . . Feedback Blocked . | . . . . Robot Schematics Acquired . | . . . . Robots Built . | . . . . Authchips . | . . . . Time . | . . . . Total Robot Build Rating . | . . . . Part Schematics Acquired . | . . . . Parts Built . | . . . . Authchips . | . . . . Time . | . . . . Total Part Build Rating . | . . . . Parts Repaired . | . . . . Time . | . . . . Parts Recycled 1 | . 1 . . Recycled Matter . | . . . . Retrieved Matter . | . . . . Retrieved Components . | . . . . Parts Scanalyzed . | . . . . Part Schematics Acquired . | . . . . Parts Damaged . | . . . . Bothacking | -11 -10 -10 -10 ------------ Run | Yrd Mat Min Exi Used RIF Installer . | . . . . Robots Hacked . | . . . . Non-combat . | . . . . Combat . | . . . . Robot Hacks Applied . | . . . . Relay Couplers Released . | . . . . Fabnet Peak Effective % . | . . . . Robots Rewired . | . . . . Allies Hacked . | . . . . Hacks Repelled . | . . . . Allies | -11 -10 -10 -10 -------- Run | Yrd Mat Min Exi Total Allies . | . . . . Largest Group . | . . . . Highest-Rated Group . | . . . . Highest-Rated Ally . | . . . . Total Orders . | . . . . Ally Attacks . | . . . . Total Damage . | . . . . Kills . | . . . . Allies Corrupted . | . . . . Allies Melted . | . . . . Intel | -11 -10 -10 -10 ------- Run | Yrd Mat Min Exi Robot Analysis Total . | . . . . Derelict Logs Recovered 1 | . . 1 . Drone Launches . | . . . . Drone Recoveries . | . . . . Exploration | -11 -10 -10 -10 ------------- Run | Yrd Mat Min Exi Turns Passed 1372 | 90 178 391 713 Spaces Moved 999 | 55 133 258 553 Core 5 | 5 . . . Treads . | . . . . Legs 994 | 50 133 258 553 Wheels . | . . . . Hover . | . . . . Flight . | . . . . Fastest Speed 50 | 50 120 120 120 Average Speed 123 | 113 120 120 126 Slowest Speed 820 | 120 120 120 820 Overloaded Moves . | . . . . Propulsion Burnouts . | . . . . Robots Hopped . | . . . . Cave-ins Triggered 1 | . . 1 . Exploration Rate (%) 45 | 4 37 49 93 Regions Visited 3 Branch Regions 2 Pre-discovered Areas 1 | . . . 1 Known Exits Taken . | . . . . Unknown Exits Taken 3 | 1 1 1 . Scrap Searched . | . . . . Spaces Dug . | . . . . Terrain Destroyed 31 | . . 31 . Melee . | . . . . Projectile . | . . . . AOE 31 | . . 31 . Terrain Rammed . | . . . . Walls Destroyed . | . . . . Machines Disabled . | . . . . Actions | -11 -10 -10 -10 --------- Run | Yrd Mat Min Exi Total 1118 | 83 149 316 570 Wait 64 | 9 11 35 9 Move 996 | 54 132 257 553 Hop . | . . . . Pick Up 19 | 12 4 2 1 Fast Attach 3 | . . 2 1 Attach 11 | 7 1 2 1 Detach 2 | 1 . 1 . Swap 2 | . . 2 . Drop 6 | . . 1 5 Fire 15 | . 1 14 . Melee . | . . . . Ram . | . . . . Kick . | . . . . Crush . | . . . . Escape Stasis . | . . . . Rewire . | . . . . Trap . | . . . . Miscellaneous . | . . . . Route ------- -11/Scrapyard -10/Materials -10/Mines (discovered 2 exits: [*Mat] / *Exi) -10/Exiles (discovered 2 exits: [*Min x2]) History --------- Turn | Location | Event 27 | -11/Scrapyard | Discovered new exit (range 14) 91 | -11/Scrapyard | Entered Materials 168 | -10/Materials | Met 8R-AWN 241 | -10/Materials | Discovered new exit (range 14) 269 | -10/Materials | Entered Mines 272 | -10/Mines | Followed 8R-AWN into the Mines 312 | -10/Mines | Build established: Mutant 315 | -10/Mines | Assembled infested the area 358 | -10/Mines | Crushed by falling debris 389 | -10/Mines | Lost 3 parts (1n2w) 407 | -10/Mines | Learned Materials terminal intel 524 | -10/Mines | Discovered new exit (range 5) 585 | -10/Mines | Discovered new exit (range 6) 660 | -10/Mines | Entered Exiles 678 | -10/Exiles | Discovered new exit (range 15) 696 | -10/Exiles | Welcomed by 8R-AWN 718 | -10/Exiles | Met EX-HEX 756 | -10/Exiles | Met EX-BIN 765 | -10/Exiles | Build established: Scavenger-Mutant 776 | -10/Exiles | Aligned with FarCom system 777 | -10/Exiles | Given EX-Vault access code 876 | -10/Exiles | Met EX-DEC 881 | -10/Exiles | Learned location of Zion (-7) 957 | -10/Exiles | Discovered new exit (range 10) 1049 | -10/Exiles | Visited The Gauntlet 1250 | -10/Exiles | Learned about 8R-AWN's background 1343 | -10/Exiles | Attacked by the Exiles 1352 | -10/Exiles | Core integrity fell below 50% 1366 | -10/Exiles | Core integrity fell below 20% 1373 | -10/Exiles | Destroyed by 8R-AWN with 8R-AWN's Boregun Last Messages --------------- 01359_ HV Slug penetrates Wall. 01359_ HV Slug penetrates as-05433. 01359_ as-05433 suffers critical hit (Destroy). 01359_ as-05433 destroyed. 01359_ HV Slug penetrates Earth. 01362_ HV Slug penetrates Wall. 01363_ Aluminum Leg destroyed. 01365_ Penetrated by HV Slug. 01365_ HV Slug penetrates Machine. 01365_ Penetrated by HV Slug. 01365_ HV Slug penetrates Wall. 01367_ Penetrated by HV Slug. 01367_ HV Slug penetrates Wall. 01367_ Penetrated by HV Slug. 01367_ HV Slug penetrates Wall. 01369_ Penetrated by HV Slug. 01369_ HV Slug penetrates Wall. 01373_ Penetrated by HV Slug. 01373_ HV Slug penetrates Wall. 01373_ Penetrated by HV Slug. Map ----- +----------------------------------------------------+ | """#???????????????????????????????????????????? | | """#???????????????????????????????????????????? | | """#???????????????????????????????????????????? | | """##??????????????????????????????????????????? | | """""??????????????????????????????????????????? | | """##??????????????????????????????????????????? | | " """""??????????????????????????????????????????? | | " # ??????????????????????????????????????????? | | """""#???????????????????????????????????????????? | | ######???????????????????????????????????????????# | | ????????????????????????????????????????????????## | | ???????????????????????????????????????????????## | | ???????????????????????????????????????????????# | | ?#########?????????????????????????????????????# | | ##"""""""""##??????????????????????????????????# | | " """ """"#?????????????????????????????????## | | "" " #???????????????????????????????## | | " """#???????????????????????????????# | | " "#???????????#####???????????????# | | " "##?????????##" #??????????????## | | ""###??????##" #?????????????## | | """#????###; ##????????????# | | "#????#;# g ###????????### # | | ##???# [ ########## # | | ##?## *!] #""""## ## | | " ### %@! * ## | | ## * # | | ;### # | | ;##"""""#### | | # ##########??#### * | | a ##;;##??????????????##### | | a ## #????????????????????### | | " % #####???????????????????????### | | """ %""#?????????????????????????????### | | " ""#" "##??????????????????????????????#" | | "" """##"""" ""##???????????????????????????????## | | #""""###########?????????????????????????????????? | | ######???????????????????????????????????????????? | | ?????????????????????????????????????????????????? | | ?????????????????????????????????????????????????? | | ?????????????????????????????????????????????????? | | ?????????????????????????????????????????????????? | | ?????????????????????????????????????????????????? | | ?????????????????????????????????????????????????? | | ?????????????????????????????????????????????????? | | ?????????????????????????????????????????????????? | | ?????????????????????????????????????????????????? | | ?????????????????????????????????????????????????? | | ?????????????????????????????????????????????????? | | ?????????????????????????????????????????????????? | +----------------------------------------------------+ Best States ------------- Heat Dissipation 25 Energy Generation 14 Energy Capacity 250 Matter Stores 300 Matter Capacity 300 Sight Range 16 Robot Scan Range 14 Terrain Scan Density 10 Evasion (%) 55 Item Schematics ----------------- None Robot Schematics ------------------ None Fabricated ------------ Nothing Alien Tech Used ----------------- None Achievements -------------- GoHome() I Survived The Infestation Maybe Next Time I'll Detach My Launcher Tank Challenges ------------ None Game ------ Seed ExoskeletonDamperFocus Manual? 0 Play Time 00:29:01 Cumulative 6.1 hours Start 2024.12.09 @ 19:03:09 End 2024.12.09 @ 19:33:57 Sessions 1 Manual Loads 0 Difficulty Rogue Special Mode None Game No. 7 Rogue 1 Adventurer 6 Explorer 0 Win Type - Total 0 Types 0/0/0/0/0/0/0/0/0 Lore% 8 Gallery% 14 Achievement% 16 Wizard Run 0 Options --------- Layout 1 ASCII 0 Keyboard 0 Movement Numpad Keybinds 0 Fullscreen 1 Font 32/SmallcapsGlow Map View 77x35 Zoom Use 0% Tactical HUD 1 Map Filters NONE Filters NONE Steam 1 RUN: ceda8463-6b9c-4e86-8143-430ebeb5d8bc